[Event "Nordic-chT Scholastic 2019"]
[Site "Stockholm"]
[Date "2019.09.06"]
[Round "2.1"]
[White "Aalto, Patrik"]
[Black "Stefansson, Vignir Vatnar"]
[Result "0-1"]
[ECO "B00"]
[WhiteElo "2104"]
[BlackElo "2316"]
[Annotator "ChessBase"]
[PlyCount "64"]
[EventDate "2019.09.05"]
[EventType "team-tourn"]
[EventCountry "SWE"]
[SourceTitle "playchess.com"]
[Source "ChessBase"]
[SourceQuality "1"]
[TimeControl "5400+30"]

1. e4 {[%emt 0:00:00]} b6 {[%emt 0:00:00]} 2. d4 {[%emt 0:00:00]} Bb7 {[%emt 0:00:00]} 3. Bd3 {[%emt 0:00:00]} e6 {[%emt 0:00:00]} 4. Nf3 {[%emt 0:01:11]} Nf6 {[%emt 0:00:00]} 5. Qe2 {[%emt 0:03:21]} d5 {[%emt 0:00:03]} 6. e5 {[%emt 0:01:20]} Ng8 {[%emt 0:00:09]} 7. O-O {[%emt 0:12:14]} c5 {[%emt 0:00:13]} 8. c4 {[%emt 0:12:57]} cxd4 {[%emt 0:06:21]} 9. Nxd4 {[%emt 0:04:34]} Bc5 {[%emt 0:08:18]} 10. Qg4 {[%emt 0:21:46]} Ne7 {[%emt 0:01:11]} 11. Nb3 {[%emt 0:12:00]} Nbc6 {[%emt 0:00:51]} 12. Nxc5 {[%emt 0:08:22]} bxc5 {[%emt 0:00:21]} 13. Qxg7 {[%emt 0:02:17]} Rg8 {[%emt 0:01:11]} 14. Qf6 {[%emt 0:00:36]} Ng6 {[%emt 0:00:53]} 15. Qxd8+ {[%emt 0:04:44]} Rxd8 {[%emt 0:00:11]} 16. cxd5 {[%emt 0:06:21]} Ncxe5 {[%emt 0:04:14]} 17. Bb5+ {[%emt 0:00:44]} Ke7 {[%emt 0:00:08]} 18. f4 {[%emt 0:03:09]} Ng4 {[%emt 0:02:50]} 19. h3 {[%emt 0:01:09]} Nf6 {[%emt 0:00:02]} 20. Be3 {[%emt 0:02:02]} Rc8 {[%emt 0:04:41]} 21. dxe6 {[%emt 0:01:01]} fxe6 {[%emt 0:02:09]} 22. g4 {[%emt 0:00:27]} h5 {[%emt 0:01:52]} 23. g5 {[%emt 0:00:35]} Nd5 {[%emt 0:00:02]} 24. Bd2 {[%emt 0:00:27]} Rcf8 {[%emt 0:00:01]} 25. Nc3 {[%emt 0:00:38]} Ndxf4 {[%emt 0:00:42]} 26. Kh2 {[%emt 0:00:19]} Rf5 {[%emt 0:08:22]} 27. Rf2 {[%emt 0:00:43]} Rxg5 {[%emt 0:00:38]} 28. Bf1 {[%emt 0:00:29]} Nh4 {[%emt 0:05:18]} 29. Bxf4 {[%emt 0:00:33]} Rg1 {[%emt 0:00:06]} 30. Bg2 {[%emt 0:00:30]} R1xg2+ {[%emt 0:00:29]} 31. Rxg2 {[%emt 0:00:06]} Rxg2+ {[%emt 0:00:07]} 32. Kh1 {[%emt 0:00:05]} Rf2+ {[%emt 0:00:31]} 0-1

[Event "Nordic-chT Scholastic 2019"]
[Site "Stockholm"]
[Date "2019.09.06"]
[Round "2.2"]
[White "Briem, Stephan"]
[Black "Lehtinen, Justus"]
[Result "1-0"]
[ECO "E44"]
[WhiteElo "2204"]
[BlackElo "1485"]
[Annotator "NA"]
[PlyCount "65"]
[EventDate "2019.09.05"]
[EventType "team-tourn"]
[EventCountry "SWE"]
[SourceTitle "playchess.com"]
[Source "ChessBase"]
[SourceQuality "1"]
[TimeControl "5400+30"]

1. d4 {[%emt 0:00:00]} Nf6 {[%emt 0:00:00]} 2. c4 {[%emt 0:00:00]} e6 {[%emt 0:00:00]} 3. Nc3 {[%emt 0:00:00]} Bb4 {[%emt 0:00:00]} 4. e3 {[%emt 0:00:00]} b6 {[%emt 0:00:42]} 5. Nge2 {[%emt 0:00:00]} Bb7 {[%emt 0:00:36]} 6. a3 {[%emt 0:00:02]} Be7 {[%emt 0:00:22]} 7. d5 {[%emt 0:00:04]} O-O {[%emt 0:01:23]} 8. e4 {[%emt 0:00:04]} exd5 {[%emt 0:06:32] E44: Nimzo-Indian: Rubinstein: 4...b6 5 Ne2} 9. cxd5 {[%emt 0:00:29]} Bc5 $146 {[%emt 0:02:02] [#]} ({Predecessor:} 9... Re8 $11 {remains equal.} 10. g3 Bc5 11. Bg2 Ng4 12. O-O Qf6 13. Nf4 Nxf2 14. Rxf2 Bxf2+ 15. Kxf2 c5 16. Kg1 d6 17. Nb5 Qd8 18. Nh5 Qd7 19. Bh6 f5 20. Nxg7 Qxb5 21. Nxf5 {1-0 (21) Moreno Ruiz,J (2461)-Vallejo Diaz,J (2204) Madrid 2019}) 10. b4 {[%emt 0:00:58]} ({Better is} 10. Ng3 $1 $16) 10... Be7 {[%emt 0:03:21]} 11. Ng3 {[%emt 0:01:12]} d6 {[%emt 0:02:12]} 12. Be2 {[%emt 0:00:51]} Nfd7 {[%emt 0:02:38]} 13. Bb2 {[%emt 0:01:07]} Ne5 {[%emt 0:01:58]} 14. f4 {[%emt 0:01:11]} Ng6 {[%emt 0:01:06]} 15. O-O {[%emt 0:00:08]} Bc8 {[%emt 0:08:34]} 16. Nh5 {[%emt 0:01:36]} f5 {[%emt 0:03:10]} 17. Nb5 {[%emt 0:02:54]} a6 {[%emt 0:02:52]} 18. Qd4 {[%emt 0:01:31]} Rf7 {[%emt 0:01:18]} 19. Nc3 {[%emt 0:00:49]} Bf6 {[%emt 0:02:35]} 20. Nxf6+ {[%emt 0:01:22]} Qxf6 {[%emt 0:00:17]} 21. Qd2 {[%emt 0:01:04]} fxe4 {[%emt 0:07:27]} 22. Nxe4 {[%emt 0:01:01]} Qf5 {[%emt 0:02:47]} 23. Ng5 {[%emt 0:03:01]} Re7 {[%emt 0:01:56]} 24. Bd3 {[%emt 0:02:23]} Qxd5 {[%emt 0:03:23]} 25. Qc2 $18 {[%emt 0:01:29]} Be6 {[%emt 0:15:37]} 26. Be4 {[%emt 0:00:56]} Qc4 {[%emt 0:02:37]} 27. Bxg6 {[%emt 0:01:14]} hxg6 {[%emt 0:01:56]} 28. Qxg6 {[%emt 0:00:32]} Nc6 {[%emt 0:04:25]} 29. f5 {[%emt 0:03:32]} Bd5 {[%emt 0:11:15]} 30. f6 {[%emt 0:02:45]} Qg4 {[%emt 0:05:32]} 31. Qh7+ {[%emt 0:01:16]} Kf8 {[%emt 0:00:40]} 32. fxe7+ {[%emt 0:02:08]} Kxe7 {[%emt 0:00:34]} 33. Qxg7+ {[%emt 0:00:11]} 1-0

[Event "Nordic-chT Scholastic 2019"]
[Site "Stockholm"]
[Date "2019.09.06"]
[Round "2.3"]
[White "Aurela, Valtteri"]
[Black "Heidarsson, Arnar Milutin"]
[Result "1/2-1/2"]
[ECO "B50"]
[WhiteElo "1467"]
[BlackElo "1756"]
[Annotator "NA"]
[PlyCount "105"]
[EventDate "2019.09.05"]
[EventType "team-tourn"]
[EventCountry "SWE"]
[SourceTitle "playchess.com"]
[Source "ChessBase"]
[SourceQuality "1"]
[TimeControl "5400+30"]

1. e4 {[%emt 0:00:00]} c5 {[%emt 0:00:00]} 2. Nf3 {[%emt 0:00:59]} d6 {[%emt 0:00:00]} 3. d3 {[%emt 0:01:40]} Nc6 {[%emt 0:00:00]} 4. Nc3 {[%emt 0:02:09]} Nf6 {[%emt 0:00:09]} 5. Be2 {[%emt 0:01:39]} g6 {[%emt 0:00:29]} 6. O-O {[%emt 0:01:39]} Bg7 {[%emt 0:00:15]} 7. h3 {[%emt 0:01:36]} O-O {[%emt 0:00:17]} 8. Be3 {[%emt 0:01:22]} b6 {[%emt 0:01:12]} 9. d4 {[%emt 0:01:53]} cxd4 {[%emt 0:00:15]} 10. Nxd4 {[%emt 0:01:11]} Bb7 {[%emt 0:00:30]} 11. Bf3 {[%emt 0:04:04]} Rc8 {[%emt 0:02:23]} 12. Ncb5 {[%emt 0:06:55]} Nxd4 {[%emt 0:01:04]} 13. Bxd4 {[%emt 0:01:37]} a6 {[%emt 0:04:20]} 14. Nc3 {[%emt 0:03:26]} b5 {[%emt 0:02:09]} 15. e5 {[%emt 0:03:57]} Bxf3 {[%emt 0:01:47]} 16. Qxf3 {[%emt 0:01:05]} dxe5 {[%emt 0:06:17]} 17. Bxe5 {[%emt 0:01:27]} b4 {[%emt 0:01:25]} 18. Rad1 {[%emt 0:04:49]} Qa5 {[%emt 0:03:57]} 19. Nd5 {[%emt 0:04:16]} Nxd5 {[%emt 0:00:18]} 20. Qxd5 {[%emt 0:01:07]} Qxd5 {[%emt 0:00:34]} 21. Rxd5 {[%emt 0:00:21]} Rxc2 {[%emt 0:00:18]} 22. Re1 {[%emt 0:02:38]} Bxe5 {[%emt 0:00:43]} 23. Rexe5 {[%emt 0:00:49]} Rxb2 {[%emt 0:00:17]} 24. Ra5 {[%emt 0:00:43]} Rc8 {[%emt 0:00:32]} 25. Rxa6 {[%emt 0:02:01]} Rcc2 {[%emt 0:00:26]} 26. Rxe7 {[%emt 0:01:32]} Rxf2 {[%emt 0:00:09]} 27. Raa7 {[%emt 0:04:27]} Rxg2+ {[%emt 0:03:15]} 28. Kf1 {[%emt 0:00:42]} Rgf2+ {[%emt 0:00:12]} 29. Ke1 {[%emt 0:02:11]} Rxa2 {[%emt 0:00:39]} 30. Rxa2 {[%emt 0:00:35]} Rxa2 {[%emt 0:00:06]} 31. Rb7 {[%emt 0:00:13]} Rh2 {[%emt 0:00:09]} 32. Rxb4 {[%emt 0:00:51]} Rxh3 {[%emt 0:00:08]} 33. Kf2 {[%emt 0:00:44]} h5 {[%emt 0:00:07]} 34. Rb6 {[%emt 0:01:36]} Ra3 {[%emt 0:00:08]} 35. Rd6 {[%emt 0:01:39]} Kg7 {[%emt 0:00:11]} 36. Rd7 {[%emt 0:02:41]} g5 {[%emt 0:00:13]} 37. Rd5 {[%emt 0:01:03]} Kg6 {[%emt 0:00:07]} 38. Rd6+ {[%emt 0:00:18]} f6 {[%emt 0:00:11]} 39. Rb6 {[%emt 0:00:26]} g4 {[%emt 0:00:05]} 40. Kg2 {[%emt 0:00:56]} Kg5 {[%emt 0:00:17]} 41. Rb5+ {[%emt 0:01:41]} f5 {[%emt 0:00:17]} 42. Rc5 {[%emt 0:01:27]} Ra2+ {[%emt 0:00:10]} 43. Kg1 {[%emt 0:00:50]} h4 {[%emt 0:00:07]} 44. Kh1 {[%emt 0:01:08]} g3 {[%emt 0:00:06]} 45. Kg1 {[%emt 0:02:01]} h3 {[%emt 0:00:20]} 46. Rc1 {[%emt 0:01:11]} Kg4 {[%emt 0:00:13]} 47. Kh1 {[%emt 0:02:30]} h2 {[%emt 0:00:23]} 48. Rc4+ {[%emt 0:01:25]} f4 {[%emt 0:00:06]} 49. Rxf4+ {[%emt 0:00:23]} Kg5 {[%emt 0:04:39]} 50. Rf5+ {[%emt 0:00:45]} Kg4 {[%emt 0:03:55]} 51. Rf4+ {[%emt 0:00:17]} Kg5 {[%emt 0:01:57]} 52. Rf5+ {[%emt 0:00:11]} Kg6 {[%emt 0:00:09]} 53. Rf6+ {[%emt 0:00:05]} 1/2-1/2

[Event "Nordic-chT Scholastic 2019"]
[Site "Stockholm"]
[Date "2019.09.06"]
[Round "2.5"]
[White "Ivarsson, Sebastian"]
[Black "Bergan, Gaute"]
[Result "0-1"]
[ECO "D15"]
[WhiteElo "1976"]
[BlackElo "1862"]
[Annotator "NA"]
[PlyCount "100"]
[EventDate "2019.09.05"]
[EventType "team-tourn"]
[EventCountry "SWE"]
[SourceTitle "playchess.com"]
[Source "ChessBase"]
[SourceQuality "1"]
[TimeControl "5400+30"]

1. d4 {[%emt 0:00:00]} d5 {[%emt 0:00:00]} 2. c4 {[%emt 0:00:00]} c6 {[%emt 0:00:10]} 3. Nf3 {[%emt 0:00:00]} Nf6 {[%emt 0:00:17]} 4. Nc3 {[%emt 0:00:02]} a6 {[%emt 0:01:24]} 5. cxd5 {[%emt 0:01:54]} cxd5 {[%emt 0:00:09]} 6. e3 {[%emt 0:01:08]} Nc6 {[%emt 0:01:55]} 7. Bd3 {[%emt 0:01:12]} Bg4 {[%emt 0:01:10]} 8. O-O {[%emt 0:00:21]} e6 {[%emt 0:00:16]} 9. b3 {[%emt 0:02:08]} Bb4 {[%emt 0:10:19]} 10. Bb2 {[%emt 0:01:56]} Rc8 {[%emt 0:01:06]} 11. Rc1 {[%emt 0:02:18]} Qa5 {[%emt 0:05:34]} 12. Be2 {[%emt 0:12:14]} O-O {[%emt 0:04:54]} 13. a3 {[%emt 0:22:56]} Bxc3 {[%emt 0:00:21]} 14. Rxc3 {[%emt 0:00:06]} Ne4 {[%emt 0:01:53]} 15. Rc1 $15 {[%emt 0:03:58]} b5 {[%emt 0:08:57]} 16. Ne1 {[%emt 0:08:31]} Bxe2 {[%emt 0:05:34]} 17. Qxe2 {[%emt 0:00:03]} Qd2 {[%emt 0:00:10]} 18. Rc2 {[%emt 0:00:28]} Qxe2 {[%emt 0:00:13]} 19. Rxe2 {[%emt 0:00:07]} Na5 {[%emt 0:00:19]} 20. f3 {[%emt 0:04:48]} Nc3 {[%emt 0:01:39]} 21. Rd2 {[%emt 0:06:09]} Nxb3 {[%emt 0:09:40]} 22. Rd3 {[%emt 0:01:04]} Ne2+ {[%emt 0:00:04]} 23. Kf2 {[%emt 0:00:49]} Nec1 {[%emt 0:00:06]} 24. Rd1 {[%emt 0:00:20]} Rc7 {[%emt 0:00:30]} 25. e4 {[%emt 0:02:08]} Rfc8 {[%emt 0:02:10]} 26. Kg3 {[%emt 0:01:52]} Na5 {[%emt 0:05:21]} 27. Rf2 {[%emt 0:00:13]} Na2 {[%emt 0:03:25]} 28. Nd3 {[%emt 0:03:35]} Nc3 {[%emt 0:01:13]} 29. Rc1 {[%emt 0:01:06]} Na4 {[%emt 0:02:16]} 30. Rxc7 {[%emt 0:00:57]} Rxc7 {[%emt 0:00:05]} 31. exd5 {[%emt 0:00:06]} Nxb2 {[%emt 0:03:42]} 32. Rxb2 {[%emt 0:00:54]} Nc4 {[%emt 0:00:13]} 33. Re2 {[%emt 0:00:38]} Rd7 {[%emt 0:03:31]} 34. dxe6 {[%emt 0:01:51]} fxe6 {[%emt 0:00:05]} 35. Rxe6 {[%emt 0:03:35]} Rxd4 {[%emt 0:00:13]} 36. Nf4 {[%emt 0:04:00]} Rd6 {[%emt 0:03:32]} 37. Rxd6 {[%emt 0:02:30]} Nxd6 {[%emt 0:00:05]} 38. Nd5 {[%emt 0:00:06]} a5 {[%emt 0:01:28]} 39. Ne7+ {[%emt 0:02:08]} Kf7 {[%emt 0:00:10]} 40. Nc6 {[%emt 0:00:02]} Nc4 {[%emt 0:01:05]} 41. Kf4 {[%emt 0:01:00]} a4 {[%emt 0:01:27]} 42. Ke4 {[%emt 0:02:19]} Nxa3 {[%emt 0:00:14]} 43. Kd4 {[%emt 0:05:59]} Nc2+ {[%emt 0:04:59]} 44. Kc3 {[%emt 0:01:12]} Ne3 {[%emt 0:00:19]} 45. Nd4 {[%emt 0:00:56]} Nd5+ {[%emt 0:01:13]} 46. Kd3 {[%emt 0:01:31]} b4 {[%emt 0:00:17]} 47. Kc4 {[%emt 0:00:19]} b3 {[%emt 0:00:10]} 48. Nb5 {[%emt 0:00:25]} b2 {[%emt 0:07:17]} 49. Na3 {[%emt 0:00:08]} Ne3+ {[%emt 0:00:06]} 50. Kb4 {[%emt 0:00:05]} Nc2+ {[%emt 0:00:31]} 0-1

[Event "Nordic-chT Scholastic 2019"]
[Site "Stockholm"]
[Date "2019.09.06"]
[Round "2.6"]
[White "Johansen, Mikkel Li"]
[Black "Dingertz, Erik"]
[Result "0-1"]
[ECO "C56"]
[WhiteElo "1489"]
[BlackElo "1896"]
[Annotator "NA"]
[PlyCount "42"]
[EventDate "2019.09.05"]
[EventType "team-tourn"]
[EventCountry "SWE"]
[SourceTitle "playchess.com"]
[Source "ChessBase"]
[SourceQuality "1"]
[TimeControl "5400+30"]

1. e4 {[%emt 0:00:00]} e5 {[%emt 0:00:00]} 2. Nf3 {[%emt 0:00:00]} Nc6 {[%emt 0:00:00]} 3. d4 {[%emt 0:00:00]} exd4 {[%emt 0:01:04]} 4. Bc4 {[%emt 0:00:00]} Nf6 {[%emt 0:01:29]} 5. O-O {[%emt 0:00:01]} Nxe4 {[%emt 0:14:47]} 6. Re1 {[%emt 0:00:18]} d5 {[%emt 0:00:02]} 7. Bxd5 {[%emt 0:00:03]} Qxd5 {[%emt 0:00:03]} 8. Nc3 {[%emt 0:00:11]} Qa5 {[%emt 0:00:17]} 9. Rxe4+ {[%emt 0:01:24]} Be6 {[%emt 0:01:01]} 10. Nxd4 {[%emt 0:00:20]} O-O-O {[%emt 0:00:56]} 11. Be3 {[%emt 0:02:15]} Bc5 {[%emt 0:04:51]} 12. Nce2 {[%emt 0:01:45]} Rhe8 {[%emt 0:12:02]} 13. Qe1 {[%emt 0:01:19]} Qxe1+ {[%emt 0:06:50]} 14. Rxe1 {[%emt 0:00:10]} Bd5 {[%emt 0:00:44]} 15. Nxc6 {[%emt 0:01:35]} Bxe3 {[%emt 0:10:07]} 16. Nxa7+ {[%emt 0:03:04]} Bxa7 {[%emt 0:00:13]} 17. Ra4 {[%emt 0:02:11]} Kb8 {[%emt 0:00:10]} 18. Kf1 {[%emt 0:00:37]} Bc6 {[%emt 0:00:18]} 19. Ra3 {[%emt 0:00:25]} Rd2 {[%emt 0:00:21]} 20. Rd3 {[%emt 0:00:59]} Rxc2 {[%emt 0:00:37]} 21. Nf4 {[%emt 0:01:16]} Rxf2+ {[%emt 0:00:17]} 0-1

[Event "Nordic-chT Scholastic 2019"]
[Site "Stockholm"]
[Date "2019.09.06"]
[Round "2.7"]
[White "Stromgard, Martin"]
[Black "Nickelsen, Emil"]
[Result "1-0"]
[ECO "C00"]
[WhiteElo "1648"]
[BlackElo "1286"]
[Annotator "NA"]
[PlyCount "93"]
[EventDate "2019.09.05"]
[EventType "team-tourn"]
[EventCountry "SWE"]
[SourceTitle "playchess.com"]
[Source "ChessBase"]
[SourceQuality "1"]
[TimeControl "5400+30"]

1. e4 {[%emt 0:00:00]} e6 {[%emt 0:00:00]} 2. e5 {[%emt 0:03:40]} d5 {[%emt 0:00:00]} 3. d4 {[%emt 0:00:41]} c5 {[%emt 0:00:11]} 4. Bb5+ {[%emt 0:03:01]} Bd7 {[%emt 0:00:16]} 5. Bxd7+ {[%emt 0:00:18]} Qxd7 {[%emt 0:00:12]} 6. f4 {[%emt 0:00:17]} Nc6 {[%emt 0:00:29]} 7. Nf3 {[%emt 0:02:23]} Nh6 {[%emt 0:00:50]} 8. c3 {[%emt 0:00:38]} Be7 {[%emt 0:02:15]} 9. f5 {[%emt 0:03:56]} Nxf5 {[%emt 0:02:01]} 10. O-O {[%emt 0:06:37]} O-O {[%emt 0:00:51]} 11. Ng5 {[%emt 0:01:59]} cxd4 {[%emt 0:04:05]} 12. Qh5 {[%emt 0:33:51]} Bxg5 {[%emt 0:03:06]} 13. Bxg5 {[%emt 0:00:21]} Nce7 {[%emt 0:01:12]} 14. g4 {[%emt 0:17:06]} Ne3 {[%emt 0:03:04]} 15. Rf3 {[%emt 0:15:47]} Nxg4 {[%emt 0:42:30]} 16. Qxg4 {[%emt 0:01:07]} Nf5 {[%emt 0:00:03]} 17. Nd2 {[%emt 0:00:33]} h6 {[%emt 0:01:44]} 18. Bh4 {[%emt 0:04:09]} dxc3 {[%emt 0:00:32]} 19. Nb3 {[%emt 0:01:33]} cxb2 {[%emt 0:01:04]} 20. Rb1 {[%emt 0:00:45]} d4 {[%emt 0:01:47]} 21. Rxb2 {[%emt 0:01:05]} Rad8 22. Rg2 {[%emt 0:00:37]} g6 {[%emt 0:03:11]} 23. Bxd8 {[%emt 0:00:28]} Qxd8 {[%emt 0:00:33]} 24. Rd2 {[%emt 0:00:13]} Qc7 {[%emt 0:02:10]} 25. Qe4 {[%emt 0:00:52]} Rd8 {[%emt 0:01:54]} 26. Kg2 {[%emt 0:00:12]} Qb6 {[%emt 0:01:51]} 27. Rfd3 {[%emt 0:00:40]} Rf8 {[%emt 0:19:08]} 28. Nxd4 {[%emt 0:00:28]} Ne7 {[%emt 0:00:49]} 29. Nxe6 {[%emt 0:00:40]} Qxe6 {[%emt 0:00:31]} 30. Rd6 {[%emt 0:00:06]} Qc8 {[%emt 0:01:05]} 31. Rf6 {[%emt 0:00:55]} Qc1 {[%emt 0:01:48]} 32. Rdf2 {[%emt 0:00:30]} Qg5+ {[%emt 0:00:20]} 33. Kh3 {[%emt 0:00:29]} Qh5+ {[%emt 0:01:05]} 34. Kg2 {[%emt 0:00:30]} Nf5 {[%emt 0:02:35]} 35. e6 {[%emt 0:00:30]} Qg5+ {[%emt 0:00:17]} 36. Kh3 {[%emt 0:00:28]} Qh5+ {[%emt 0:01:19]} 37. Kg2 {[%emt 0:00:31]} Qg5+ {[%emt 0:00:02]} 38. Kh3 {[%emt 0:00:32]} Qxf6 {[%emt 0:00:17]} 39. exf7+ {[%emt 0:00:31]} Rxf7 {[%emt 0:00:26]} 40. Rg2 {[%emt 0:00:16]} Kg7 {[%emt 0:01:48]} 41. Rg4 {[%emt 0:00:40]} Qc3+ {[%emt 0:01:18]} 42. Kg2 {[%emt 0:00:33]} Qd2+ {[%emt 0:00:34]} 43. Kh1 {[%emt 0:00:29]} Qd1+ {[%emt 0:01:17]} 44. Rg1 {[%emt 0:00:32]} Qd4 {[%emt 0:00:30]} 45. Qg2 {[%emt 0:00:30]} Re7 {[%emt 0:00:47]} 46. Qxg6+ {[%emt 0:00:15]} Kf8 {[%emt 0:00:39]} 47. Qg8# {[%emt 0:00:07] Qd8} 1-0

[Event "Nordic-chT Scholastic 2019"]
[Site "Stockholm"]
[Date "2019.09.06"]
[Round "2.8"]
[White "Buxrud, Fredrik Berg"]
[Black "Gaudras, Allan"]
[Result "0-1"]
[ECO "C02"]
[WhiteElo "1224"]
[BlackElo "1380"]
[Annotator "NA"]
[PlyCount "120"]
[EventDate "2019.09.05"]
[EventType "team-tourn"]
[EventCountry "SWE"]
[SourceTitle "playchess.com"]
[Source "ChessBase"]
[SourceQuality "1"]
[TimeControl "5400+30"]

1. e4 {[%emt 0:00:00]} e6 {[%emt 0:00:00]} 2. d4 {[%emt 0:00:06]} d5 {[%emt 0:00:00]} 3. e5 {[%emt 0:00:08]} c5 {[%emt 0:00:00]} 4. c3 {[%emt 0:00:21]} Nc6 {[%emt 0:00:00]} 5. Nf3 {[%emt 0:00:41]} Qb6 {[%emt 0:00:00]} 6. Be2 {[%emt 0:07:43]} Bd7 {[%emt 0:01:39]} 7. O-O {[%emt 0:02:49]} O-O-O {[%emt 0:01:44]} 8. Re1 {[%emt 0:04:25]} Nge7 {[%emt 0:01:31]} 9. Qc2 {[%emt 0:07:15]} Ng6 {[%emt 0:01:10]} 10. Be3 {[%emt 0:01:12]} Kb8 {[%emt 0:00:39]} 11. Nbd2 {[%emt 0:02:01]} Rc8 {[%emt 0:01:24]} 12. Qb3 {[%emt 0:01:56]} Qa5 {[%emt 0:01:25]} 13. Red1 {[%emt 0:09:29]} c4 {[%emt 0:02:01]} 14. Qc2 {[%emt 0:00:52]} Be7 {[%emt 0:00:59]} 15. b3 {[%emt 0:01:57]} b5 {[%emt 0:02:11]} 16. a4 {[%emt 0:00:45]} cxb3 {[%emt 0:01:13]} 17. Qxb3 {[%emt 0:01:22]} b4 {[%emt 0:00:31]} 18. Rdb1 {[%emt 0:06:22]} Ka8 {[%emt 0:02:24]} 19. Ra2 {[%emt 0:04:44]} Rb8 {[%emt 0:00:38]} 20. c4 {[%emt 0:00:28]} Rhc8 {[%emt 0:04:26]} 21. h3 {[%emt 0:04:17]} h6 {[%emt 0:03:33]} 22. c5 {[%emt 0:03:50]} f6 {[%emt 0:02:51]} 23. exf6 {[%emt 0:00:58]} Bxf6 {[%emt 0:00:05]} 24. Qd3 {[%emt 0:01:33]} Nge7 {[%emt 0:00:40]} 25. Bf4 {[%emt 0:09:16]} Rb7 {[%emt 0:02:26]} 26. Qa6 {[%emt 0:01:41]} Qd8 {[%emt 0:00:47]} 27. Nb3 {[%emt 0:01:16]} Nb8 {[%emt 0:00:36]} 28. Bxb8 {[%emt 0:04:26]} Rc6 {[%emt 0:01:33]} 29. Qd3 {[%emt 0:07:47]} Rxb8 {[%emt 0:01:01]} 30. a5 {[%emt 0:00:54]} Bc8 {[%emt 0:00:51]} 31. a6 {[%emt 0:02:02]} Rc7 {[%emt 0:02:07]} 32. Na5 {[%emt 0:04:56]} Bd7 {[%emt 0:01:56]} 33. Qd2 {[%emt 0:02:18]} Rcc8 {[%emt 0:04:18]} 34. Rxb4 {[%emt 0:00:54]} Rxb4 {[%emt 0:00:14]} 35. Qxb4 Rb8 {[%emt 0:00:14]} 36. Qc3 {[%emt 0:01:41]} Qc7 {[%emt 0:07:16]} 37. Nb7 {[%emt 0:04:36]} Bc6 {[%emt 0:01:03]} 38. Na5 {[%emt 0:01:02]} Bd7 {[%emt 0:02:09]} 39. Ra3 {[%emt 0:00:24]} Nf5 {[%emt 0:03:02]} 40. Rb3 {[%emt 0:00:34]} Rxb3 {[%emt 0:02:31]} 41. Nxb3 {[%emt 0:00:40]} Nd6 {[%emt 0:01:04]} 42. Bd3 {[%emt 0:00:42]} Nb5 {[%emt 0:00:41]} 43. Bxb5 {[%emt 0:00:31]} Bxb5 {[%emt 0:00:17]} 44. Qe3 {[%emt 0:00:26]} Qc6 {[%emt 0:00:55]} 45. Ne5 {[%emt 0:00:31]} Qxa6 {[%emt 0:00:56]} 46. Ng4 {[%emt 0:00:14]} Bd8 {[%emt 0:01:02]} 47. Qe5 {[%emt 0:00:19]} g6 {[%emt 0:02:41]} 48. Qh8 {[%emt 0:00:26]} Qc8 {[%emt 0:00:36]} 49. Qxh6 {[%emt 0:00:42]} Bd3 {[%emt 0:00:41]} 50. Qe3 {[%emt 0:00:49]} Bc4 {[%emt 0:00:47]} 51. Nd2 {[%emt 0:00:14]} Bb5 {[%emt 0:00:49]} 52. Ne5 {[%emt 0:00:29]} g5 {[%emt 0:00:54]} 53. Nf7 {[%emt 0:00:10]} Bc7 {[%emt 0:00:53]} 54. Nxg5 {[%emt 0:00:10]} Qa6 {[%emt 0:00:33]} 55. Qe1 {[%emt 0:01:12]} Bf4 {[%emt 0:02:19]} 56. Ngf3 {[%emt 0:00:46]} Be8 {[%emt 0:01:01]} 57. Nf1 {[%emt 0:00:35]} Bh5 {[%emt 0:00:51]} 58. Qe2 {[%emt 0:00:27]} Qxe2 {[%emt 0:00:12]} 59. Ng3 {[%emt 0:00:35]} Bxg3 {[%emt 0:00:22]} 60. fxg3 Bxf3 {[%emt 0:00:13]} 0-1

[Event "Nordic-chT Scholastic 2019"]
[Site "Stockholm"]
[Date "2019.09.06"]
[Round "2.9"]
[White "Falkevall, Axel"]
[Black "Olsen, William Alexander"]
[Result "1-0"]
[ECO "B22"]
[WhiteElo "2000"]
[BlackElo "1800"]
[Annotator "NA"]
[PlyCount "47"]
[EventDate "2019.09.05"]
[EventType "team-tourn"]
[EventCountry "SWE"]
[SourceTitle "playchess.com"]
[Source "ChessBase"]
[SourceQuality "1"]
[TimeControl "5400+30"]

1. e4 {[%emt 0:00:00]} c5 {[%emt 0:00:00]} 2. c3 {[%emt 0:00:00]} d5 {[%emt 0:00:00]} 3. exd5 {[%emt 0:00:00]} Qxd5 {[%emt 0:00:00]} 4. d4 {[%emt 0:00:00]} Nf6 {[%emt 0:00:00]} 5. Nf3 {[%emt 0:00:11]} cxd4 {[%emt 0:00:07]} 6. cxd4 {[%emt 0:00:13]} g6 {[%emt 0:00:09]} 7. Nc3 {[%emt 0:01:30]} Qd8 {[%emt 0:00:04]} 8. Bc4 {[%emt 0:03:11]} Bg7 {[%emt 0:00:06]} 9. O-O {[%emt 0:07:22]} O-O {[%emt 0:00:08]} 10. h3 {[%emt 0:02:18]} Qc7 {[%emt 0:00:09]} 11. Qe2 {[%emt 0:06:35]} a6 {[%emt 0:02:46]} 12. Bg5 {[%emt 0:10:05]} e6 {[%emt 0:01:48]} 13. Rac1 {[%emt 0:03:35]} Nc6 {[%emt 0:02:53]} 14. Rfd1 {[%emt 0:04:56]} b5 {[%emt 0:07:42]} 15. Bb3 {[%emt 0:14:22]} Qb7 $18 {[%emt 0:09:06]} (15... Qb6 $16) 16. Bxf6 {[%emt 0:09:19]} Bxf6 {[%emt 0:00:18]} 17. Ne4 {[%emt 0:00:32]} Bg7 {[%emt 0:01:01]} 18. d5 {[%emt 0:03:08]} Nd8 {[%emt 0:02:00]} 19. Nd6 {[%emt 0:01:00]} Qd7 {[%emt 0:00:43]} 20. dxe6 {[%emt 0:01:19]} Nxe6 {[%emt 0:00:20]} 21. Nxc8 {[%emt 0:01:13]} Raxc8 {[%emt 0:01:01]} 22. Rxd7 {[%emt 0:00:33]} Rxc1+ {[%emt 0:00:02]} 23. Kh2 {[%emt 0:02:24]} Nf4 {[%emt 0:00:06]} 24. Qe3 {[%emt 0:01:08]} 1-0